bitfinex/quotes_SOLUSD_20240607
["timestamp","ask_amount","ask_price","bid_price","bid_amount"]
[1717773864997,2.1691,170.58,170.55,12.0732]
[1717773866186,8.25552833,170.59,170.55,12.0732]
[1717773866386,8.25552833,170.59,170.56,12.2723]
[1717773867079,8.25552833,170.59,170.57,6.01]
[1717773867296,6.08652833,170.59,170.57,6.01]
[1717773867777,2.1687,170.61,170.58,6.01]
[1717773868091,2.1686,170.62,170.59,6.01]
[1717773868292,2.1686,170.62,170.6,6.01]
[1717773871303,8.2505414,170.63,170.6,6.01]
[1717773871598,8.2504414,170.63,170.59,6.1311]
[1717773871907,8.2504414,170.63,170.59,8.3]
[1717773872895,8.2504414,170.63,170.59,6.1311]
[1717773873306,2.1686,170.62,170.57,2.1691]
[1717773873485,2.1686,170.62,170.58,6.01]
[1717773873883,2.1686,170.62,170.59,6.01]
[1717773874187,2.1685,170.62,170.59,6.01]
[1717773875601,8.2504414,170.63,170.59,6.01]
[1717773876090,2.1685,170.62,170.58,2.169]
[1717773876301,2.1685,170.62,170.59,6.01]
[1717773876802,8.2505414,170.63,170.59,6.01]
[1717773876982,8.2505414,170.63,170.58,2.169]
[1717773876983,8.2505414,170.63,170.58,8.179]
[1717773877725,2.1689,170.59,170.58,6.01]
[1717773877882,2.1694,170.56,170.52,6.01]
[1717773878083,2.1694,170.56,170.51,8.1798]
[1717773878285,2.1694,170.56,170.52,6.01]
[1717773878484,2.1695,170.54,170.52,6.01]
[1717773878708,2.1695,170.55,170.52,6.01]
[1717773879276,8.25347912,170.56,170.53,6.01]
[1717773879614,8.25347912,170.56,170.51,2.1699]
[1717773879815,8.25347912,170.56,170.53,6.01]
[1717773882390,2.1694,170.55,170.48,5.1369191]
[1717773882720,2.1696,170.54,170.48,0.7963191]
[1717773882914,2.1696,170.54,170.51,6.01]
[1717773883220,2.1697,170.53,170.5,6.01]
[1717773883385,6.08417912,170.56,170.48,0.7963191]
[1717773883579,8.25347912,170.56,170.51,2.1698]
[1717773883775,8.25347912,170.56,170.53,6.01]
[1717773884377,8.25347912,170.56,170.51,2.1698]
[1717773884378,6.08417912,170.56,170.52,6.01]
[1717773884599,2.1695,170.55,170.5,2.17]
[1717773884786,2.1695,170.55,170.51,6.01]
[1717773885104,2.1695,170.54,170.51,6.01]
[1717773885281,16.61257912,170.56,170.51,6.01]
[1717773885482,2.1697,170.53,170.51,6.01]
[1717773885796,2.1696,170.54,170.52,6.01]
[1717773885992,2.1695,170.55,170.52,6.01]
[1717773886498,2.1695,170.55,170.51,6.01]
[1717773887510,2.1695,170.55,170.52,6.01]
[1717773888410,2.1695,170.54,170.52,6.01]
[1717773888612,2.1695,170.55,170.52,6.01]
[1717773889201,8.24619748,170.55,170.52,6.01]
[1717773893297,2.1695,170.55,170.5,2.1699]
[1717773893504,2.1695,170.55,170.51,6.01]
[1717773893813,2.1695,170.55,170.51,8.1799]
[1717773894320,2.1695,170.55,170.51,6.01]
[1717773894618,2.1696,170.54,170.51,6.01]
[1717773894803,2.1695,170.55,170.51,2.1699]
[1717773895005,2.1695,170.55,170.48,5.1368191]
[1717773895006,2.1696,170.54,170.49,2.1701]
[1717773895211,2.1697,170.53,170.5,6.01]
[1717773896110,2.1696,170.54,170.5,6.01]
[1717773896290,6.4192,170.55,170.5,6.01]
[1717773896490,6.07699504,170.53,170.5,6.01]
[1717773896806,6.07699504,170.53,170.49,2.1701]
[1717773897016,6.07699504,170.53,170.51,6.01]
[1717773897906,6.07699504,170.53,170.5,2.17]
[1717773898735,2.1696,170.54,170.5,2.17]
[1717773898895,8.24646524,170.54,170.5,2.17]
[1717773899095,6.07686524,170.54,170.48,0.7963191]
[1717773899310,6.07686524,170.54,170.51,2.1698]
[1717773901734,6.07686524,170.54,170.48,0.7963191]
[1717773901735,6.07686524,170.54,170.53,6.01]
[1717773901895,8.6369,170.58,170.54,2.1695]
[1717773902095,8.6369,170.58,170.52,2.1698]
[1717773902096,8.26306436,170.56,170.52,2.1698]
[1717773902324,6.09376436,170.56,170.54,6.01]
[1717773902528,6.09376436,170.56,170.53,6.01]
[1717773902764,2.1695,170.55,170.5,2.17]
[1717773902897,2.1696,170.54,170.52,6.01]
[1717773903518,2.1696,170.54,170.5,2.17]
[1717773903925,2.1696,170.54,170.52,6.01]
[1717773904344,2.1696,170.54,170.5,2.17]
[1717773904557,2.1695,170.55,170.52,6.01]
[1717773907123,2.1695,170.54,170.52,6.01]
[1717773907529,2.1695,170.54,170.5,2.1699]
[1717773907722,2.1695,170.55,170.52,6.01]
[1717773908131,6.09376436,170.56,170.48,0.7963191]
[1717773908132,23.66376436,170.56,170.48,0.7963191]
[1717773908347,47.904,170.49,170.4,0.3705518]
[1717773908551,20.7696777,170.48,170.41,6.01]
[1717773908752,2.1709,170.43,170.42,6.01]
[1717773909055,2.1709,170.43,170.4,0.3705518]
[1717773909264,30.8524,170.47,170.4,0.3705518]
[1717773909558,2.1711,170.42,170.4,6.3805518]
[1717773909769,2.1712,170.41,170.4,6.3805518]
[1717773910059,2.1712,170.42,170.4,6.3805518]
[1717773910262,2.1712,170.42,170.4,0.3705518]
[1717773910545,20.0,170.43,170.4,6.3805518]
[1717773910763,2.1712,170.42,170.4,6.3805518]
[1717773911956,2.1712,170.42,170.4,0.3705518]
[1717773912153,2.1712,170.42,170.4,6.3805518]
[1717773912553,8.27589485,170.42,170.4,6.3805518]
[1717773913259,6.10469485,170.42,170.4,6.3805518]
[1717773913465,6.10469485,170.42,170.41,6.01]
[1717773913843,2.1708,170.45,170.41,6.01]
[1717773914048,8.27460905,170.45,170.41,6.01]
[1717773914242,8.27460905,170.45,170.4,0.3705518]
[1717773914556,2.1708,170.44,170.42,6.01]
[1717773914964,6.10380905,170.45,170.4,0.3705518]
[1717773914965,13.0273,170.41,170.4,0.3705518]
[1717773915148,43.4755,170.41,170.4,0.3705518]
[1717773915355,69.9892,170.41,170.4,0.14551779]
[1717773918455,69.9892,170.41,170.31,0.7963191]
[1717773918456,4.3435,170.37,170.31,0.7963191]
[1717773918655,36.8539,170.37,170.32,6.01]
[1717773918858,2.1723,170.33,170.31,6.8063191]
[1717773919271,2.1721,170.34,170.31,0.7963191]
[1717773919483,22.172,170.35,170.32,6.01]
[1717773919673,2.172,170.35,170.32,6.01]
[1717773920289,2.172,170.35,170.33,6.01]
[1717773920570,22.1718,170.37,170.33,6.01]
[1717773920768,20.0,170.36,170.34,6.01]
[1717773920970,2.1718,170.37,170.34,6.01]
[1717773921593,41.2104,170.39,170.31,0.7963191]
[1717773921893,2.1718,170.36,170.31,0.7963191]
[1717773922067,2.1717,170.37,170.32,6.3938]
[1717773922271,2.1717,170.37,170.36,6.01]
[1717773922600,2.1717,170.37,170.35,6.01]
[1717773923872,2.1717,170.37,170.32,6.3938]
[1717773924095,2.1717,170.37,170.35,6.01]
[1717773924278,8.28232508,170.37,170.35,6.01]
[1717773925473,6.11062508,170.37,170.35,6.01]
[1717773925690,6.11062508,170.37,170.36,6.01]
[1717773925890,2.1713,170.4,170.36,6.01]
[1717773926089,2.1713,170.4,170.38,6.01]
[1717773926698,2.1714,170.39,170.31,6.9989191]
[1717773926886,2.1714,170.39,170.36,6.01]
[1717773927276,2.1714,170.39,170.31,6.9989191]
[1717773927604,2.1717,170.38,170.35,6.01]
[1717773928074,2.1716,170.38,170.31,6.9989191]
[1717773928269,2.1715,170.39,170.36,6.01]
[1717773928900,2.1715,170.39,170.38,6.01]
[1717773929304,2.1715,170.39,170.37,6.01]
[1717773930602,20.0,170.4,170.38,6.01]
[1717773930804,6.11006591,170.41,170.39,6.01]
[1717773931102,6.11006591,170.41,170.31,42.1589191]
[1717773931301,2.1713,170.4,170.38,6.01]
[1717773933589,2.1714,170.39,170.37,6.01]
[1717773934801,2.1714,170.4,170.37,6.01]
[1717773935309,2.1714,170.4,170.31,6.9989191]
[1717773935490,2.1714,170.4,170.37,6.01]
[1717773935878,2.1714,170.39,170.31,6.9989191]
[1717773936105,2.1714,170.39,170.37,6.01]
[1717773936315,2.1715,170.39,170.37,6.01]
[1717773937200,10.45256591,170.41,170.37,6.01]
[1717773937412,2.1714,170.4,170.37,6.01]
[1717773937585,2.1715,170.39,170.37,6.01]
[1717773938313,2.1716,170.38,170.35,6.01]
[1717773938493,2.1717,170.37,170.34,6.01]
[1717773939320,6.10875636,170.39,170.34,6.01]
[1717773939505,6.10875636,170.39,170.31,0.7963191]
[1717773939506,4.3435,170.37,170.31,0.7963191]
[1717773939704,2.172,170.35,170.32,6.01]
[1717773940087,2.172,170.35,170.31,0.7963191]
[1717773940286,2.172,170.35,170.32,6.01]
[1717773941486,2.1721,170.34,170.31,0.7963191]
[1717773941706,2.1721,170.34,170.31,6.8063191]
[1717773942109,2.172,170.35,170.31,6.8063191]
[1717773942908,12.75885636,170.39,170.33,6.01]
[1717773942909,2.1718,170.36,170.33,6.01]
[1717773943115,2.1718,170.37,170.33,6.01]
[1717773943412,2.1718,170.36,170.33,6.01]
[1717773943990,2.1718,170.37,170.33,6.01]
[1717773944203,2.1718,170.36,170.33,6.01]
[1717773944523,2.1723,170.32,170.31,0.7963191]
[1717773944693,8.1823,170.32,170.31,0.7963191]
[1717773945015,34.2163,170.32,170.31,0.7963191]
[1717773945187,54.2163,170.32,170.31,0.7963191]
[1717773945594,47.6992,170.32,170.31,0.7963191]
[1717773945794,54.2163,170.32,170.31,0.7963191]
[1717773946225,61.3297,170.32,170.31,0.7963191]
[1717773946394,10.8633,170.3,170.17,6.0542]
[1717773946714,10.8633,170.3,170.23,6.01]
[1717773946715,2.1732,170.26,170.23,6.01]
[1717773947025,6.01,170.27,170.21,6.01]
[1717773947388,10.8964,170.27,170.21,6.01]
[1717773947588,1.6733,170.25,170.21,6.01]
[1717773947827,12.5602,170.27,170.22,6.01]
[1717773947828,6.5502,170.27,170.22,6.01]
[1717773948028,2.1731,170.26,170.14,0.83287354]
[1717773948397,2.1732,170.25,170.14,0.83287354]
[1717773948632,2.1732,170.25,170.21,6.01]
[1717773948790,8.7233,170.26,170.22,6.01]
[1717773948991,6.11259897,170.25,170.23,6.01]
[1717773951219,6.11259897,170.25,170.14,0.83287354]
[1717773951425,8.28579897,170.25,170.14,20.83287354]
[1717773951626,6.11259897,170.25,170.22,6.01]
[1717773952024,6.11259897,170.25,170.14,20.83287354]
[1717773952225,6.11259897,170.25,170.22,6.01]
[1717773953134,6.11259897,170.25,170.14,20.83287354]
[1717773953309,6.11259897,170.25,170.22,6.01]
[1717773954631,2.1735,170.24,170.14,0.83287354]
[1717773954835,6.11259897,170.25,170.21,6.01]
[1717773955338,6.11259897,170.25,170.23,6.01]
[1717773955638,6.11259897,170.25,170.14,0.83287354]
[1717773955854,6.11259897,170.25,170.22,6.01]
[1717773956148,6.11259897,170.25,170.23,6.01]
[1717773960405,17.62,170.36,170.19,6.01]
[1717773960406,10.8614,170.33,170.19,6.6195]
[1717773960608,2.1725,170.31,170.29,6.01]
[1717773961024,8.28166558,170.31,170.28,6.01]
[1717773961233,2.1726,170.3,170.27,6.01]
[1717773961435,2.1726,170.3,170.26,6.01]
[1717773961636,2.1727,170.29,170.26,6.01]
[1717773961931,16.9371,170.29,170.19,6.6195]
[1717773962116,2.1732,170.26,170.22,6.01]
[1717773962824,2.173,170.27,170.23,6.01]
[1717773964139,2.1731,170.26,170.23,6.01]
[1717773964335,2.1732,170.26,170.22,6.01]
[1717773964529,2.1732,170.26,170.15,6.3351]
[1717773964530,2.1732,170.26,170.23,6.01]
[1717773965036,2.1732,170.26,170.15,6.3351]
[1717773965214,16.8751,170.27,170.15,6.3351]
[1717773965420,2.1734,170.24,170.21,6.01]
[1717773965635,2.1733,170.25,170.21,6.01]
[1717773965820,8.2347,170.25,170.21,6.01]
[1717773966024,6.0614,170.25,170.22,6.01]
[1717773966416,8.2346,170.25,170.22,6.01]
[1717773967814,2.1732,170.25,170.22,6.01]
[1717773968434,2.1732,170.25,170.15,6.3351]
[1717773968644,4.3463,170.26,170.15,6.3351]
[1717773968833,2.1734,170.24,170.21,6.01]
[1717773969624,2.1734,170.24,170.15,6.3351]
[1717773969820,2.1734,170.24,170.21,6.01]
[1717773970563,2.1734,170.24,170.15,6.3351]
[1717773970720,2.1734,170.24,170.22,6.01]
[1717773970921,2.1734,170.24,170.21,6.01]
[1717773971129,8.3808,170.24,170.14,0.83287354]
[1717773971341,8.3808,170.24,170.2,6.01]
[1717773971531,6.11071593,170.23,170.2,6.01]
[1717773971737,6.11071593,170.23,170.21,6.01]
[1717773971941,6.11071593,170.23,170.22,6.01]
[1717773972145,6.11071593,170.23,170.14,0.83287354]
[1717773972323,6.11071593,170.23,170.21,6.01]
[1717773972523,4.3476,170.21,170.14,0.83287354]
[1717773972738,2.1741,170.19,170.15,6.01]
[1717773973160,2.1741,170.18,170.15,6.01]
[1717773973328,6.01,170.21,170.15,6.01]
[1717773973527,2.174,170.19,170.15,6.01]
[1717773973754,2.174,170.19,170.16,6.01]
[1717773974449,2.1741,170.19,170.16,6.01]
[1717773976425,2.1741,170.18,170.16,6.01]
[1717773976625,2.1741,170.18,170.14,0.83287354]
[1717773976847,2.1741,170.18,170.16,6.01]
[1717773977252,2.1741,170.19,170.16,6.01]
[1717773979234,2.1739,170.2,170.16,6.01]
[1717773979738,2.174,170.19,170.16,6.01]
[1717773980258,2.174,170.19,170.15,6.01]
[1717773980653,2.174,170.19,170.16,6.01]
[1717773981328,2.174,170.19,170.14,0.83287354]
[1717773981525,2.174,170.19,170.16,6.01]
[1717773981732,6.11160594,170.18,170.14,0.83287354]
[1717773981932,6.11160594,170.18,170.16,6.01]
[1717773982878,6.2172,170.17,170.14,0.83287354]
[1717773983039,12.2272,170.17,170.14,0.83287354]
[1717773983445,2.1745,170.15,170.14,0.83287354]
[1717773983654,2.1744,170.16,170.14,0.83287354]
[1717773984442,2.1743,170.17,170.14,0.83287354]
[1717773984956,2.1744,170.16,170.14,0.83287354]
[1717773985745,2.1743,170.17,170.14,0.83287354]
[1717773986938,6.11160594,170.18,170.14,0.83287354]
[1717773987144,6.11160594,170.18,170.16,6.01]
[1717773987759,6.11160594,170.18,170.17,6.01]
[1717773988776,8.28570594,170.18,170.16,6.01]
[1717773988939,8.28570594,170.18,170.15,6.01]
[1717773989862,6.11160594,170.18,170.16,6.01]
[1717773990237,8.1838,170.21,170.17,6.01]
[1717773990577,8.28837055,170.2,170.14,0.83287354]
[1717773990734,8.28837055,170.2,170.17,6.01]
[1717773991265,8.28837055,170.2,170.14,0.83287354]
[1717773991554,8.28837055,170.2,170.17,6.01]
[1717773992839,6.11447055,170.2,170.17,6.01]
[1717773993447,6.11447055,170.2,170.18,6.01]
[1717773993835,6.11447055,170.2,170.19,6.01]
[1717773994039,2.1735,170.23,170.19,6.01]
[1717773994248,8.1835,170.23,170.19,6.01]
[1717773994550,2.1737,170.21,170.19,6.01]
[1717773994766,2.174,170.19,170.14,0.83287354]
[1717773994974,2.1739,170.2,170.14,0.83287354]
[1717773995274,2.1739,170.2,170.16,6.01]
[1717773995460,2.1738,170.21,170.16,6.01]
[1717773995777,2.1739,170.2,170.16,6.01]
[1717773995970,2.1738,170.21,170.16,6.01]
[1717773996270,2.1739,170.2,170.16,6.01]
[1717773998669,2.1739,170.2,170.14,0.83287354]
[1717773998851,2.1739,170.2,170.15,6.01]
[1717773999054,2.1738,170.21,170.16,6.01]
[1717774000067,2.1739,170.2,170.16,6.01]
[1717774000353,2.1738,170.21,170.16,6.01]
[1717774000566,12.1225946,170.22,170.16,6.01]
[1717774000760,2.1739,170.2,170.16,6.01]
[1717774000982,2.1739,170.2,170.15,6.01]
[1717774001176,2.174,170.19,170.14,0.83287354]
[1717774001474,2.1741,170.18,170.14,0.83287354]
[1717774001878,6.01,170.19,170.14,0.83287354]
[1717774002079,2.1743,170.17,170.14,0.83287354]
[1717774002470,2.1742,170.18,170.14,0.83287354]
[1717774002893,2.1742,170.18,170.14,6.84287354]
[1717774003061,2.1742,170.18,170.14,0.83287354]
[1717774003265,2.1742,170.18,170.14,6.84287354]
[1717774004760,6.11173593,170.17,170.14,6.84287354]
[1717774005475,6.11173593,170.17,170.14,0.83287354]
[1717774006487,8.28593593,170.17,170.14,0.83287354]
[1717774008169,6.11173593,170.17,170.14,0.83287354]
[1717774008367,2.1745,170.16,170.14,0.83287354]
[1717774008586,12.12173593,170.17,170.14,0.83287354]
[1717774008795,2.1744,170.16,170.14,0.83287354]
[1717774009281,2.1745,170.15,170.14,0.83287354]
[1717774009880,8.1845,170.15,170.14,0.83287354]
[1717774010074,8.7746,170.15,170.14,0.83287354]
[1717774010473,2.1745,170.15,170.14,0.83287354]
[1717774010886,8.1845,170.15,170.14,0.83287354]
[1717774011872,14.487,170.15,170.14,0.83287354]
[1717774012290,8.477,170.15,170.14,0.83287354]
[1717774012601,14.487,170.15,170.14,0.83287354]
[1717774014110,8.477,170.15,170.14,0.83287354]
[1717774014319,14.487,170.15,170.14,0.83287354]
[1717774015016,8.1845,170.15,170.14,0.83287354]
[1717774015192,14.29449509,170.15,170.14,0.83287354]
[1717774016302,8.28449509,170.15,170.14,0.83287354]
[1717774016615,6.10999509,170.15,170.14,0.83287354]
[1717774020216,6.10999509,170.15,170.14,6.84287354]
[1717774020622,2.1741,170.18,170.14,6.84287354]
[1717774020786,2.1743,170.17,170.14,6.84287354]
[1717774020991,6.10665725,170.16,170.14,6.84287354]
[1717774021713,6.10665725,170.16,170.15,6.01]
[1717774022787,2.174,170.19,170.15,6.01]
[1717774023009,6.1079461,170.18,170.16,6.01]
[1717774023506,8.2820461,170.18,170.16,6.01]
[1717774023717,8.2820461,170.18,170.15,6.01]
[1717774023718,6.1079461,170.18,170.15,6.01]
[1717774024818,13.0472,170.15,170.14,0.83287354]
[1717774024995,12.994,170.15,170.14,0.83287354]
[1717774025201,28.2158,170.15,170.14,0.83287354]
[1717774025821,21.7454,170.15,170.14,0.83287354]
[1717774027222,47.9074,170.15,170.14,0.83287354]
[1717774027392,61.65778134,170.15,170.14,0.83287354]
[1717774028424,55.13418134,170.15,170.14,0.83287354]
[1717774028827,49.12418134,170.15,170.14,0.83287354]
[1717774029031,61.65778134,170.15,170.14,0.83287354]
[1717774029441,95.37538134,170.15,170.14,0.83287354]
[1717774029737,2.1755,170.07,170.06,0.3705518]
[1717774029912,8.1855,170.07,170.06,0.3705518]
[1717774031234,88.1093,170.07,170.06,0.3705518]
[1717774031400,2.1764,170.01,169.98,0.7963191]
[1717774031599,2.1765,170.0,169.98,0.7963191]
[1717774032021,6.01,170.03,169.98,0.7963191]
[1717774032217,2.1765,170.0,169.98,0.7963191]
[1717774032423,8.1865,169.99,169.98,0.7963191]
[1717774033025,19.0693,169.99,169.98,0.7963191]
[1717774033229,12.5396,169.99,169.98,0.7963191]
[1717774033437,18.64849565,169.99,169.98,0.7963191]
[1717774033826,8.28539565,169.99,169.98,0.7963191]
[1717774034742,6.10889565,169.99,169.98,0.7963191]
[1717774036645,8.28539565,169.99,169.98,0.7963191]
[1717774039036,6.10889565,169.99,169.98,0.7963191]
[1717774040248,8.28539565,169.99,169.98,0.7963191]
[1717774040462,6.10889565,169.99,169.98,0.7963191]
[1717774041146,8.28539565,169.99,169.98,0.7963191]
[1717774043462,6.10889565,169.99,169.98,0.7963191]
[1717774043752,8.28539565,169.99,169.98,0.7963191]
[1717774048156,6.10889565,169.99,169.98,0.7963191]
[1717774049443,27.87449565,169.99,169.98,0.7963191]
[1717774049642,41.34479565,169.99,169.98,0.7963191]
[1717774050251,28.28539565,169.99,169.98,0.7963191]
[1717774050466,8.28539565,169.99,169.98,0.7963191]
[1717774053567,6.10889565,169.99,169.98,0.7963191]
[1717774054235,8.28539565,169.99,169.98,0.7963191]
[1717774054843,18.75849565,169.99,169.98,0.7963191]
[1717774055565,14.40539565,169.99,169.98,0.7963191]
[1717774055873,8.28539565,169.99,169.98,0.7963191]
[1717774056370,6.10889565,169.99,169.98,0.7963191]
[1717774058577,6.10889565,169.99,169.98,6.9163191]
[1717774058769,6.10889565,169.99,169.98,0.7963191]
[1717774058955,6.12,170.01,169.98,6.9163191]
[1717774059161,6.10370692,170.0,169.98,0.7963191]
[1717774059853,6.10370692,170.0,169.98,6.9163191]
[1717774060449,6.12,170.02,169.98,0.7963191]
[1717774060670,2.1759,170.05,170.0,6.12]
[1717774060873,2.1759,170.05,169.98,0.7963191]
[1717774060874,6.10370683,170.04,170.01,6.12]
[1717774061485,6.10370683,170.04,169.98,0.7963191]
[1717774061646,6.10370683,170.04,170.03,6.12]
[1717774061845,8.7032,170.06,170.03,6.12]
[1717774062049,14.80624469,170.06,170.03,6.12]
[1717774062672,8.27874469,170.06,170.03,6.12]
[1717774063171,8.27874469,170.06,170.01,6.12]
[1717774063340,2.1758,170.05,170.01,6.12]
[1717774064170,6.10304469,170.06,170.01,6.12]
[1717774064372,10.45454469,170.06,170.0,6.12]
[1717774064547,2.176,170.04,169.98,0.7963191]
[1717774064746,4.3517,170.05,169.98,0.7963191]
[1717774064944,2.1764,170.01,169.98,0.7963191]
[1717774065759,2.1762,170.02,169.98,0.7963191]
[1717774066773,8.2961,170.03,169.98,0.7963191]
[1717774066972,2.1762,170.02,169.98,0.7963191]
[1717774067155,2.1762,170.02,169.98,6.9163191]
[1717774067356,10.45454469,170.06,169.99,6.12]
[1717774067557,2.176,170.04,169.99,6.12]
[1717774067756,22.1758,170.05,170.0,6.12]
[1717774067960,2.1758,170.05,170.0,6.12]
[1717774068150,2.1758,170.05,170.01,6.12]
[1717774068472,2.1758,170.05,170.0,6.12]
[1717774069072,2.1759,170.04,170.0,6.12]
[1717774069255,2.1758,170.05,170.0,6.12]
[1717774070161,6.10304469,170.06,170.0,6.12]
[1717774070369,8.27874469,170.06,170.01,6.12]
[1717774070870,14.39874469,170.06,170.01,6.12]
[1717774071257,8.27874469,170.06,170.02,6.12]
[1717774071566,6.10304469,170.06,169.98,0.7963191]
[1717774071772,8.27874469,170.06,170.01,6.12]
[1717774072259,6.10304469,170.06,170.01,6.12]
[1717774072465,8.27874469,170.06,170.01,6.12]
[1717774073254,6.10304469,170.06,170.02,6.12]
[1717774073755,6.10304469,170.06,170.03,6.12]
[1717774074061,6.10304469,170.06,169.98,0.7963191]
[1717774074271,6.10304469,170.06,170.02,6.12]
[1717774076256,8.27874469,170.06,170.02,6.12]
[1717774076459,6.10304469,170.06,170.02,6.12]
[1717774076664,6.10304469,170.06,170.03,6.12]
[1717774077862,6.10304469,170.06,170.04,6.12]
[1717774078172,2.1754,170.08,170.04,6.12]
[1717774078380,8.28256856,170.07,170.03,6.12]
[1717774078564,6.10706856,170.07,170.04,6.12]
[1717774079759,2.176,170.03,169.98,0.7963191]
[1717774079951,8.2959,170.04,169.98,6.9163191]
[1717774080153,6.10706856,170.07,169.99,6.12]
[1717774080375,8.2957,170.06,170.0,6.12]
[1717774080766,6.12,170.06,170.0,6.12]
[1717774080960,14.40266856,170.07,170.01,6.12]
[1717774081248,14.40266856,170.07,169.98,0.7963191]
[1717774081249,6.10706856,170.07,170.02,6.12]
[1717774081481,6.10706856,170.07,170.04,6.12]
[1717774082982,6.10706856,170.07,170.05,6.12]
[1717774083160,6.10706856,170.07,169.98,0.7963191]
[1717774083475,6.10706856,170.07,170.04,6.12]
[1717774085678,6.10706856,170.07,170.05,6.12]
[1717774087857,6.10706856,170.07,170.06,6.12]
[1717774088059,2.1748,170.13,170.06,6.12]
[1717774088377,6.10776266,170.1,170.08,6.12]
[1717774088571,2.1748,170.13,170.08,6.12]
[1717774089100,6.10775604,170.1,170.08,6.12]
[1717774089285,2.1749,170.13,170.08,6.12]
[1717774089592,6.10774903,170.12,170.08,6.12]
[1717774089889,6.10774903,170.12,170.03,15.5318]
[1717774090061,6.10774903,170.12,170.1,6.12]
[1717774090581,12.3032,170.17,170.11,6.12]
[1717774090582,2.1743,170.17,170.11,6.12]
[1717774090799,6.10679767,170.16,170.12,6.12]
[1717774092283,6.10679767,170.16,170.05,35.27]
[1717774092284,6.10679767,170.16,170.13,6.12]
[1717774092864,8.2939,170.2,170.13,6.12]
[1717774093078,2.174,170.19,170.13,6.12]
[1717774093297,6.10680483,170.18,170.13,6.12]
[1717774093601,6.10680483,170.18,170.14,6.12]
[1717774093765,6.10680483,170.18,170.15,6.12]
[1717774095593,6.10680483,170.18,170.1,6.12]
[1717774095762,6.10680483,170.18,170.16,6.12]
[1717774095959,29.92718206,170.23,170.17,6.12]
[1717774096388,6.09984618,170.21,170.17,6.12]
[1717774097173,6.09984618,170.21,170.18,6.12]
[1717774098370,6.09984618,170.21,170.19,6.12]
[1717774099070,29.92718206,170.23,170.2,6.12]
[1717774099286,29.92718206,170.23,170.14,41.867]
[1717774099466,29.92718206,170.23,170.15,20.0]
[1717774099661,29.92718206,170.23,170.19,6.12]
[1717774100096,29.92718206,170.23,170.2,6.12]
[1717774100574,29.92718206,170.23,170.15,20.0]
[1717774100892,29.92718206,170.23,170.18,6.12]
[1717774101067,36.04718206,170.23,170.18,6.12]
[1717774101267,32.10078206,170.23,170.14,6.597]
[1717774101477,6.12,170.21,170.15,6.12]
[1717774101680,6.12,170.22,170.15,6.12]
[1717774101889,6.12,170.22,170.16,6.12]
[1717774103033,6.12,170.22,170.14,6.597]
[1717774103288,6.12,170.22,170.15,6.12]
[1717774103289,6.12,170.21,170.15,6.12]
[1717774103788,6.12,170.21,170.1,21.9177]
[1717774103994,6.12,170.21,170.15,6.12]
[1717774104294,6.12,170.2,170.14,6.12]
[1717774104877,6.12,170.2,170.13,6.12]
[1717774105076,6.12,170.19,170.13,6.12]
[1717774105570,6.12,170.2,170.14,6.12]
[1717774105773,29.92718206,170.23,170.14,6.12]
[1717774105973,6.12,170.2,170.14,6.12]
[1717774106294,6.12,170.21,170.15,6.12]
[1717774106595,6.12,170.2,170.14,6.12]
[1717774106804,6.12,170.21,170.1,63.3077]
[1717774107002,29.92718206,170.23,170.17,6.12]